Cogmind - Beta 17 @@@ ROGUE MODE // 2026.06.23 @ 10:31:12 Player: C0-2MO Result: Destroyed by OA-TLF(h) with Bolt Gun Performance ------------- Evolutions (0) 0 Regions Visited (4) 800 Robots Destroyed (8) 40 Value Destroyed (131) 131 Prototype IDs (16) 320 Alien Tech Used (0) 0 Bonus (800) 800 TOTAL SCORE: 2091 Bonus ------- Registered with UFD 300 Met Optimus in HQ 500 Cogmind --------- Core Integrity 0/250 Matter 300/300 Energy 99/100 System Corruption 0% Temperature Cool (0) Movement Core (50) Location -7/Scraptown Parts ------- > --- POWER (1) -------- (None) > --- PROPULSION (2) --- (None) > --- UTILITY (2) ------ (None) > --- WEAPON (2) ------- (None) > --- INVENTORY (5) ---- Light Nuclear Core Expert System A0-MCA's Component Scanner Voltaic Drivehammer (0/40) DM-GVY's Chainsaw Peak State ------------ > --- POWER ------------ Makeshift Power Source > --- PROPULSION ------- Flight Unit Xenon Bombardment Thruster > --- UTILITY ---------- Spectral Analyzer Makeshift Transmission Jammer > --- WEAPON ----------- DM-GVY's Chainsaw > --- INVENTORY -------- Light Nuclear Core Nuclear Pulse Thruster Seismic Detector A0-MCA's Component Scanner Vortex Trap [Rating: 33] Favorites ----------- Power Ion Engine Engine Ion Engine Propulsion Flight Unit Leg Aluminum Leg Flight Unit Flight Unit Utility Sensor Array Device Sensor Array Storage Small Storage Unit Processor Terrain Scan Processor Weapon Medium Laser Energy Gun Medium Laser Ballistic Gun Minigun Special Weapon Mining Laser Slashing Weapon Makeshift Axe Special Melee Weapon Improved Datajack Build | -11 -10 -10 -7 -7 ------- Run | Yrd Mat Sub Rec Scr Slots Evolved . | . . . . . Power . | . . . . . Propulsion . | . . . . . Utility . | . . . . . Weapon . | . . . . . Parts Attached 25 | 8 6 . . 11 Power 2 | 1 . . . 1 Engine 2 | 1 . . . 1 Core . | . . . . . Reactor . | . . . . . Propulsion 6 | 2 2 . . 2 Treads . | . . . . . Leg 3 | 2 1 . . . Wheel . | . . . . . Hover . | . . . . . Flight 3 | . 1 . . 2 Utility 8 | 3 2 . . 3 Device 4 | 2 1 . . 1 Storage 2 | 1 . . . 1 Processor 2 | . 1 . . 1 Hackware . | . . . . . Protection . | . . . . . Artifact . | . . . . . Weapon 9 | 2 2 . . 5 Energy Gun 3 | 2 1 . . . Energy Cannon . | . . . . . Ballistic Gun 1 | . . . . 1 Ballistic Cannon . | . . . . . Launcher . | . . . . . Special Weapon 1 | . 1 . . . Impact Weapon . | . . . . . Slashing Weapon 3 | . . . . 3 Piercing Weapon . | . . . . . Special Melee Weapon 1 | . . . . 1 Unidentified Prototypes . | . . . . . Parts Lost 9 | . 3 . . 6 Power 1 | . . . . 1 Propulsion 5 | . 2 . . 3 Utility 2 | . . . . 2 Weapon 1 | . 1 . . . Highest Loss Streak 6 | . 3 . . 6 To Critical Strikes . | . . . . . Average Backups 3 | . 2 3 3 3 Power 1 | . 1 1 1 1 Propulsion . | . 1 1 1 . Utility 1 | . . 1 1 1 Weapon . | . . . . . Tool/Special . | . . . . . Unused Backups 7 | . . . . 7 Power 2 | . . . . 2 Propulsion 1 | . . . . 1 Utility 2 | . . . . 2 Weapon 1 | . . . . 1 Tool/Special 1 | . . . . 1 Average Slot Usage (%) 69 | . 75 42 42 70 Engine 7 | . 11 . . 6 Leg 4 | . 12 . . . Flight 13 | . 2 14 14 21 Device 16 | . 17 14 14 15 Processor 4 | . 6 . . 3 Energy Gun 8 | . 22 . . . Ballistic Gun 2 | . . . . 4 Special Weapon 2 | . 1 14 14 1 Slashing Weapon 6 | . . . . 11 Special Melee Weapon 1 | . . . . 3 Peak Build Rating 33 | 9 9 3 3 33 Average Rating 11 | 5 7 3 3 16 On Entrance 3 | . 9 3 3 3 Avg Prop Armor Cover (%) . | . . . . . Naked Turns 10 | . 2 . . 8 Heaviest Build 15 | 15 11 2 2 10 Greatest Support 20 | 20 20 4 4 10 Greatest Overweight (x) 3 | . 3 . . 2 Average Overweight (x) . | . . . . . Largest Inventory Capacity 35 | 8 5 5 5 35 Average Capacity 5 | 5 5 5 5 5 Most Carried 5 | 2 4 3 3 5 Average Carried 3 | 1 2 3 3 3 Final Capacity 5 | 5 5 5 5 5 Final Carried 5 | 2 3 3 3 5 Class Distribution -------------------- 65% | Mutant 19% | Scavenger-Mutant 14% | Derelict-Mutant Dominant Class ---------------- Scavenger-Mutant | -10/Materials Mutant | -10/Subcaves Mutant | -7/Recycling Mutant | -7/Scraptown Resources | -11 -10 -10 -7 -7 ----------- Run | Yrd Mat Sub Rec Scr Matter Collected 495 | 280 55 . . 160 Remotely . | . . . . . Salvage Created 323 | 143 180 . . . Parts 16 | 5 11 . . . Haulers Intercepted 1 | . 1 . . . Recyclers Shooed 1 | 1 . . . . Parts Field Recycled . | . . . . . Retrieved Matter . | . . . . . Parts Self-Destructed 4 | . . 4 . . Prevented . | . . . . . Parts Restored . | . . . . . Kills | -11 -10 -10 -7 -7 ------- Run | Yrd Mat Sub Rec Scr Combat Hostiles Destroyed 2 | . 2 . . . Guns 2 | . 2 . . . Classes Destroyed 6 | 2 4 . . . Builder 1 | . 1 . . . Tunneler 2 | 2 . . . . Hauler 1 | . 1 . . . Recycler 1 | 1 . . . . Watcher 1 | . 1 . . . Grunt 2 | . 2 . . . Best Kill Streak 2 | 2 2 . . . Combat Bots Only 1 | . 1 . . . Max Kills in Single Turn 1 | 1 1 . . . Gunslinging . | . . . . . Exploded . | . . . . . Melee . | . . . . . Uniques/NPCs Destroyed . | . . . . . Combat | -11 -10 -10 -7 -7 -------- Run | Yrd Mat Sub Rec Scr Hostile Shots Fired 104 | . 40 18 . 46 Missed 39 | . 7 12 . 20 Hits 65 | . 33 6 . 26 Projectile 65 | . 33 6 . 26 Critical Strikes 2 | . . . . 2 Damage Taken 793 | . 395 38 . 360 Core 250 | . 71 11 . 168 Absorbed by Shields . | . . . . . Core Remaining (%) 100 | 100 . . . . Volleys Fired 42 | 12 30 . . . Largest 2 | 2 2 . . . Hottest 100 | 90 100 . . . Shots Fired 71 | 17 54 . . . Gun 65 | 17 48 . . . Cannon . | . . . . . Launcher . | . . . . . Special 6 | . 6 . . . Kinetic . | . . . . . Thermal 52 | 12 40 . . . Explosive . | . . . . . Electromagnetic 19 | 5 14 . . . Robot Hit Streak 17 | 4 17 . . . Robot Miss Streak 4 | 2 4 . . . Penetration Max . | . . . . . Secondary Targets . | . . . . . Shots Hit Robots 43 | 9 34 . . . Core Hits 15 | 5 10 . . . Critical Kills . | . . . . . Critical Parts Destroyed . | . . . . . Critical Strikes 3 | 1 2 . . . Burn 1 | . 1 . . . Corrupt 2 | 1 1 . . . Melee Attacks 21 | . . . . 21 Impact . | . . . . . Slashing 21 | . . . . 21 Piercing . | . . . . . Sneak Attacks . | . . . . . Combat Hostiles . | . . . . . Follow-up Attacks . | . . . . . Damage Inflicted 649 | 134 515 . . . Guns 560 | 117 443 . . . Cannons . | . . . . . Explosions 61 | . 61 . . . Melee . | . . . . . Ramming 28 | 17 11 . . . Kinetic . | . . . . . Thermal 440 | 90 350 . . . Explosive . | . . . . . Electromagnetic 181 | 27 154 . . . Impact . | . . . . . Slashing . | . . . . . Piercing . | . . . . . Highest Corruption . | . . . . . Average Corruption . | . . . . . Corruption Purged . | . . . . . Corruption Blocked . | . . . . . Overload Shots . | . . . . . Overflow Damage . | . . . . . Projectiles . | . . . . . Explosions . | . . . . . Melee . | . . . . . Knockbacks . | . . . . . Impact . | . . . . . Kinetic . | . . . . . Secondary . | . . . . . Self-Inflicted Damage . | . . . . . Shots . | . . . . . Rammed . | . . . . . Targets Rammed 6 | 3 3 . . . Kicked 6 | 3 3 . . . Crushed . | . . . . . Highest Temperature 409 | 200 409 . . 46 Average Temperature 110 | 99 122 . . 21 Received Heat Transfer 458 | . 225 30 . 203 Effects 3 | 1 2 . . . Shutdowns 1 | . 1 . . . Interference 1 | 1 . . . . Damage (minor) 1 | . 1 . . . Siege Activations . | . . . . . Martial Activations . | . . . . . Shielding Activations . | . . . . . Robots Disrupted . | . . . . . Combat Hostiles . | . . . . . Robots Corrupted . | . . . . . Combat Hostiles . | . . . . . Parts Fried . | . . . . . Impact Corruptions . | . . . . . Robots Melted . | . . . . . Combat Hostiles . | . . . . . Parts Melted 2 | . 2 . . . Heat Transferred 1249 | 259 990 . . . Parts Sabotaged . | . . . . . Parts Stolen . | . . . . . Parts Stripped . | . . . . . Power Chain Reactions 1 | . 1 . . . Alert | -11 -10 -10 -7 -7 ------- Run | Yrd Mat Sub Rec Scr Maximum Alert Level . | . . . . . Low Security (%) 100 | 100 100 . 100 . Level 1 . | . . . . . Level 2 . | . . . . . Level 3 . | . . . . . Level 4 . | . . . . . Level 5 . | . . . . . High Security . | . . . . . Max Security . | . . . . . Peak Influence 60 | 10 20 . 60 . Initial . | . . . . . Average 2 | . 1 . 44 . Influence Increases 181 | 15 106 . 60 . Destroy 0b10 Robot/C 40 | . 40 . . . Destroy 0b10 Robot/NC 30 | 15 15 . . . Destroy Leader 4 | . 4 . . . Successful Hack 10 | . 10 . . . Select Force Hacks 60 | . . . 60 . Disable Machine 30 | . 30 . . . Destroy Structure 7 | . 7 . . . Influence Decreases 181 | 15 91 15 . 60 Entered New Map 68 | . . 8 . 60 Time Decay 103 | 15 81 7 . . Lost Part 10 | . 10 . . . Squads Dispatched . | . . . . . Investigation . | . . . . . Extermination . | . . . . . Reinforcement . | . . . . . Assault . | . . . . . Garrison . | . . . . . Intercept . | . . . . . Searches Triggered . | . . . . . Construction Impeded . | . . . . . Haulers Reinforced . | . . . . . Active Scanning Responses . | . . . . . Cargo Convoy Interrupts . | . . . . . Stealth | -11 -10 -10 -7 -7 --------- Run | Yrd Mat Sub Rec Scr Distress Signals 1 | . 1 . . . Communications Jammed . | . . . . . Distress Signals . | . . . . . Times Spotted 50 | . 8 8 . 34 Peak Tracking Total 18 | . 4 6 . 18 Tactical Retreats 2 | . . 1 . 1 Traps | -11 -10 -10 -7 -7 ------- Run | Yrd Mat Sub Rec Scr Traps Triggered . | . . . . . Indirectly . | . . . . . Trap Hack Attempts . | . . . . . Triggered . | . . . . . Disarmed . | . . . . . Reprogrammed 1 | . 1 . . . Reused 1 | . . . . 1 Traps Extracted . | . . . . . Installed 1 | . . . . 1 Triggered . | . . . . . Most Traps Carried 1 | . . . . 1 Machines | -11 -10 -10 -7 -7 ---------- Run | Yrd Mat Sub Rec Scr Machines Disabled 10 | . 2 . . 8 Max in Single Turn 1 | . 1 . . 1 Machines Repaired . | . . . . . Machines Dismantled . | . . . . . Machines Sabotaged . | . . . . . Overloaded Fab Kills . | . . . . . Hacking | -11 -10 -10 -7 -7 --------- Run | Yrd Mat Sub Rec Scr Machines Accessed 6 | . 3 . 2 1 Terminals 3 | . 3 . . . Fabricators . | . . . . . Repair Stations . | . . . . . Recycling Units 2 | . . . 2 . Scanalyzers . | . . . . . Garrison Access . | . . . . . Total Hacks 12 | . 9 . 2 1 Successful 7 | . 4 . 2 1 Failed 5 | . 5 . . . Catastrophic 1 | . 1 . . . Database Lockouts . | . . . . . Manual 6 | . 4 . 2 . Terminals 9 | . 9 . . . Fabricators . | . . . . . Repair Stations . | . . . . . Recycling Units 2 | . . . 2 . Scanalyzers . | . . . . . Garrison Access . | . . . . . Terminal Hacks 5 | . 4 . . 1 Prototype ID Bank 1 | . 1 . . . Terminal Index 1 | . 1 . . . Locate Traps 1 | . 1 . . . Reprogram Traps 1 | . 1 . . . Proto ID Catalog 1 | . . . . 1 Fabricator Hacks . | . . . . . Repair Station Hacks . | . . . . . Recycling Unit Hacks . | . . . . . Scanalyzer . | . . . . . Garrison Access Hacks . | . . . . . Unauthorized Hacks 2 | . . . 2 . Terminals . | . . . . . Fabricators . | . . . . . Repair Stations . | . . . . . Recycling Units 2 | . . . 2 . Tunnel 2 | . . . 2 . Scanalyzers . | . . . . . Garrison Access . | . . . . . Data Cores Recovered . | . . . . . Used . | . . . . . Hacking Detections 3 | . 3 . . . Full Trace Events . | . . . . . Feedback Events . | . . . . . Feedback Blocked . | . . . . . Robot Schematics Acquired . | . . . . . Robots Built . | . . . . . Authchips . | . . . . . Time . | . . . . . Total Robot Build Rating . | . . . . . Part Schematics Acquired . | . . . . . Parts Built . | . . . . . Authchips . | . . . . . Time . | . . . . . Total Part Build Rating . | . . . . . Part Studies Acquired . | . . . . . Parts Repaired . | . . . . . Time . | . . . . . Parts Recycled . | . . . . . Recycled Matter . | . . . . . Retrieved Matter . | . . . . . Retrieved Components . | . . . . . Parts Scanalyzed . | . . . . . Part Schematics Acquired . | . . . . . Parts Damaged . | . . . . . Bothacking | -11 -10 -10 -7 -7 ------------ Run | Yrd Mat Sub Rec Scr Used RIF Installer . | . . . . . Robots Hacked . | . . . . . Non-combat . | . . . . . Combat . | . . . . . Robot Hacks Applied . | . . . . . Relay Couplers Released . | . . . . . Fabnet Peak Effective % . | . . . . . Robots Rewired . | . . . . . Allies Hacked . | . . . . . Hacks Repelled . | . . . . . Allies | -11 -10 -10 -7 -7 -------- Run | Yrd Mat Sub Rec Scr Total Allies . | . . . . . Largest Group . | . . . . . Highest-Rated Group . | . . . . . Highest-Rated Ally . | . . . . . Total Orders . | . . . . . Ally Attacks 2 | . . . . 2 Total Damage 135 | . . . . 135 Kills 1 | . . . . 1 Allies Corrupted . | . . . . . Allies Melted 3 | . . . . 3 Turrets Deployed 1 | . . . . 1 Intel | -11 -10 -10 -7 -7 ------- Run | Yrd Mat Sub Rec Scr Active Infowar (turns) 1468 | 24 510 128 19 787 Optics 238 | . . . . 238 Sensors 978 | . 45 128 19 786 Terrain 486 | 21 465 . . . Seismic 332 | 24 200 . . 108 Jamming 1 | . . . . 1 Robot Analysis Total . | . . . . . Derelict Logs Recovered . | . . . . . Drone Launches . | . . . . . Drone Recoveries . | . . . . . Exploration | -11 -10 -10 -7 -7 ------------- Run | Yrd Mat Sub Rec Scr Turns Passed 1623 | 103 571 128 19 802 Spaces Moved 2069 | 49 471 107 46 1396 Core 43 | 3 19 . . 21 Treads . | . . . . . Legs 313 | 46 267 . . . Wheels . | . . . . . Hover . | . . . . . Flight 1713 | . 185 107 46 1375 Fastest Speed 37 | 50 40 40 40 37 Average Speed 60 | 115 91 40 40 49 Slowest Speed 200 | 120 200 40 40 200 Overloaded Moves . | . . . . . Propulsion Burnouts . | . . . . . Robots Hopped 9 | . 6 . . 3 Potential Cave-ins . | . . . . . Cave-ins Triggered . | . . . . . Exploration Rate (%) 31 | 5 52 12 12 78 Regions Visited 4 Branch Regions 3 Pre-discovered Areas 2 | . . . 2 . Known Exits Taken . | . . . . . Unknown Exits Taken 4 | 1 1 1 1 . Scrap Searched 6 | . . . . 6 Spaces Dug 7 | . 3 . . 4 Terrain Destroyed 11 | . 7 . . 4 Melee 4 | . . . . 4 Projectile 4 | . 4 . . . AOE 3 | . 3 . . . Terrain Rammed . | . . . . . Walls Destroyed . | . . . . . Machines Disabled . | . . . . . Actions | -11 -10 -10 -7 -7 --------- Run | Yrd Mat Sub Rec Scr Total 2309 | 74 537 191 45 1462 Wait 126 | . 32 85 . 9 Move 2049 | 49 458 106 45 1391 Hop 8 | . 6 . . 2 Pick Up 10 | 2 1 . . 7 Fast Attach 24 | 8 5 . . 11 Attach 4 | . 1 . . 3 Detach 3 | . 1 . . 2 Swap 2 | . . . . 2 Drop 14 | 1 . . . 13 Fire 42 | 12 30 . . . Melee 21 | . . . . 21 Ram . | . . . . . Kick 5 | 2 3 . . . Crush . | . . . . . Escape Stasis . | . . . . . Rewire . | . . . . . Trap 1 | . . . . 1 Miscellaneous . | . . . . . Route ------- -11/Scrapyard -10/Materials (discovered 3 exits: [*Min x2] / [*Sub]) -10/Subcaves -7/Recycling -7/Scraptown (discovered 2 exits: *Fac x2) History --------- Turn | Location | Event 7 | -11/Scrapyard | Discovered new exit (range 15) 104 | -11/Scrapyard | Entered Materials 117 | -10/Materials | Discovered new exit (range 16) 244 | -10/Materials | Lost 3 parts (2n1w) 339 | -10/Materials | Discovered new exit (range 9) 553 | -10/Materials | Build established: Scavenger-Mutant 569 | -10/Materials | Released all parts (6) 591 | -10/Materials | Discovered new exit (range 15) 675 | -10/Materials | Entered Subcaves 676 | -10/Subcaves | Approached by a straggling Scientist 800 | -10/Subcaves | Discovered new exit (range 8) 803 | -10/Subcaves | Entered Recycling 812 | -7/Recycling | Scanned before Scraplab entrance 818 | -7/Recycling | Entered Scraplab 821 | -7/Recycling | Discovered new exit (range 2) 822 | -7/Recycling | Entered Scraptown 848 | -7/Scraptown | Visited UFD Registry 848 | -7/Scraptown | Registered with UFD as "Bulletpod" 853 | -7/Scraptown | Visited Shadow of the Wyrm 860 | -7/Scraptown | Build established: Mutant 862 | -7/Scraptown | Visited TADAMA 867 | -7/Scraptown | Visited Assassins FH 870 | -7/Scraptown | Visited The Evicted 875 | -7/Scraptown | Visited CPS Storage 880 | -7/Scraptown | Visited Spacefarers 1019 | -7/Scraptown | Heard Great Nut preacher, LISTEN AND RECITE! 1154 | -7/Scraptown | Visited DA-N13 Charitable Foundation 1165 | -7/Scraptown | Found DCF Scrap (29 items) 1183 | -7/Scraptown | Visited Scrapoid Research Area 1188 | -7/Scraptown | Visited Infowarlord's Domain 1190 | -7/Scraptown | Found Spectral Analyzer 1222 | -7/Scraptown | Visited Junk Repository 1237 | -7/Scraptown | Visited Scrapoid Pod Storage 1239 | -7/Scraptown | Found Scrapoid Pod 1246 | -7/Scraptown | Visited Scrap Suit Storage 1250 | -7/Scraptown | Visited Modified Component R&D 1265 | -7/Scraptown | Visited A0-MCA Data Center 1268 | -7/Scraptown | Given a B rating by A0-MCA 1270 | -7/Scraptown | Found A0-MCA's Component Scanner 1278 | -7/Scraptown | Visited Science Guys 1291 | -7/Scraptown | Visited Curators Association 1336 | -7/Scraptown | Discovered new exit (range 3) 1359 | -7/Scraptown | Met Optimus 1359 | -7/Scraptown | Accepted into 0bPrime 1385 | -7/Scraptown | Civil war broke out across Scraptown 1401 | -7/Scraptown | DAS Turret deployed 1416 | -7/Scraptown | Found DM-GVY's Chainsaw 1432 | -7/Scraptown | Found Vmp. Humpback 1454 | -7/Scraptown | Found Voltaic Drivehammer 1476 | -7/Scraptown | Found Prototype Processor 1511 | -7/Scraptown | Lost 3 allies 1517 | -7/Scraptown | Identified exit to Factory 1567 | -7/Scraptown | Lost 5 allies 1601 | -7/Scraptown | Core integrity fell below 50% 1618 | -7/Scraptown | Core integrity fell below 20% 1624 | -7/Scraptown | Destroyed by OA-TLF(h) with Bolt Gun Last Messages --------------- 01561_ LE-V6F(E): "We are one!" 01566_ Xenon Bombardment Thruster destroyed. 01572_ Acquired 10 matter. 01583_ Seismic Detector destroyed. 01583_ Critical hit (Burn: +50). 01585_ RR-N48(x) destroyed. 01592_ RX-Y8N(x) destroyed. 01595_ E3-NLW(j) suffers critical hit (Destroy). 01595_ E3-NLW(j) destroyed. 01599_ Bolt penetrates Machine. 01601_ Bolt penetrates Wall. 01605_ Flight Unit destroyed. 01605_ Critical hit (Burn: +50). 01605_ Penetrated by Bolt. 01608_ Mak. Power Source destroyed. 01614_ Nuclear Pulse Thruster destroyed. 01616_ Sensor Array destroyed. 01617_ Penetrated by Bolt. 01621_ 43-7RH(j): "Down with Optimus!" 01624_ Penetrated by Bolt. Map ----- +----------------------------------------------------+ | | | | | | | | | | | | | ?????????????????????????????????????? | | ?????????????????????????????????????? | | ?????????????????????????????????????? | | ?????????????????????????????????????? | | ?????????????????????????????????????? | | ?????????????????????????????????????? | | ????????????? """????????????????????? | | ???????????#" "#?????????????????? | | ?????????###""" """??????????????????? | | ????????## [%! ??????????????????? | | ????"??""" ! ???????????????????? | | ???? j"""" ???????????????????? | | ????" M""" ????????????????????? | | ?????" ????????????????????? | | ?????? " ?????????????????????? | | ???????? " ?????????????????????? | | ?????????" ??????????????????????? | | ?????????? ??????????????????????? | | ???????????# #??????????????????????? | | ???????????# @#??????????????????????? | | ???????????# #??????????????????????? | | ???????????# #??????????????????????? | | ???????????# #??????????????????????? | | ???????????# #??????????????????????? | | ???????????# #??????????????????????? | | ???????????# #??????????????????????? | | ???????????# #??????????????????????? | | ??????????##[h##?????????????????????? | | ??????????#%= ###########???????????# | | ??????????#!= %=!????????? | | ??????????# [%[????????? | | ??????????# ###########???????????? | | ??????????## g##?????????????????????? | | ??????###### ########?????????####### | | ?#"""?""""""b """""""#???????###""" # | | ?#" """"" = "#?????###"" # | | ?#" !*%"""" !%!=|[ "#?????# " # | | ?#" !!==* " / "#?????# " # | | ??""" =%=%! " [! "#?????# " # | | ???"""""/![" " | "#?????# " # | | ????""""""""*!" ]] "#?????# " # | | ?????#######[!" !! "#?????# " # | | ?????######"%=" "#?????# " # | | ????""""""""!!"""" ""#?????# " | +----------------------------------------------------+ Best States ------------- Heat Dissipation 25 Energy Generation 15 Energy Capacity 250 Matter Stores 300 Matter Capacity 300 Sight Range 24 Robot Scan Range 14 Terrain Scan Range 16 Terrain Scan Density 85 Evasion (%) 62 Item Schematics ----------------- None Robot Schematics ------------------ None Fabricated ------------ Nothing Repaired ---------- Nothing Studied --------- None Alien Tech Used ----------------- None Achievements -------------- None Challenges ------------ None Game ------ Seed FactoryEncryptedShell Manual? 0 Play Time 00:22:35 Cumulative 347.2 hours Start 2026.06.23 @ 10:08:39 End 2026.06.23 @ 10:31:12 Sessions 1 Manual Loads 0 Difficulty Rogue Special Mode None Game No. 168 Rogue 168 Adventurer 0 Explorer 0 Win Type - Total 27 Types 11/0/7/1/5/1/0/0/0/2 Lore% 89 Gallery% 77 Achievement% 87 Wizard Run 0 Options --------- Layout 1 ASCII 0 Keyboard 0 Movement Numpad Keybinds 0 Fullscreen 1 Font 24/Smallcaps Map View 50x35 Zoom Use 0% Tactical HUD 1 Map Filters NONE Filters NONE Steam 1 RUN: 10b8242f-dd2d-4706-a743-04025484433f